bitfinex/quotes_BTCUSD_20240901
["timestamp","ask_amount","ask_price","bid_price","bid_amount"]
[1725165721466,1.47867578,58688.0,58687.0,0.0644998]
[1725165722215,1.49267578,58688.0,58687.0,0.0644998]
[1725165722618,1.48267578,58688.0,58687.0,0.0644998]
[1725165722798,1.48267578,58688.0,58687.0,0.1430998]
[1725165723015,1.49067578,58688.0,58687.0,0.1430998]
[1725165723203,1.48267578,58688.0,58687.0,0.1430998]
[1725165723413,1.46867578,58688.0,58687.0,0.1430998]
[1725165723642,1.47767578,58688.0,58687.0,0.1430998]
[1725165724421,1.49167578,58688.0,58687.0,0.1430998]
[1725165725379,1.15089078,58688.0,58687.0,0.1430998]
[1725165734193,0.71592715,58688.0,58687.0,0.1430998]
[1725165734418,0.81010578,58688.0,58687.0,0.1430998]
[1725165734822,0.46932078,58688.0,58687.0,0.1430998]
[1725165736706,0.81010578,58688.0,58687.0,0.1430998]
[1725165754917,0.46932078,58688.0,58687.0,0.1430998]
[1725165755427,0.81010578,58688.0,58687.0,0.1430998]
[1725165756768,0.46932078,58688.0,58687.0,0.1430998]
[1725165766862,0.81010578,58688.0,58687.0,0.1430998]
[1725165778185,0.71592715,58688.0,58687.0,0.1430998]
[1725165778370,0.81010578,58688.0,58687.0,0.1430998]
[1725165783137,0.46932078,58688.0,58687.0,0.1430998]
[1725165783359,0.81010578,58688.0,58687.0,0.1430998]
[1725165787232,0.81010578,58688.0,58687.0,0.0008998]
[1725165793184,1.15089078,58688.0,58687.0,0.0008998]
[1725165794800,0.77574863,58688.0,58687.0,0.0008998]
[1725165795702,0.94614063,58688.0,58687.0,0.0008998]
[1725165797557,0.96914063,58688.0,58687.0,0.0008998]
[1725165804852,1.02178771,58688.0,58687.0,0.0008998]
[1725165811899,0.92760908,58688.0,58687.0,0.0008998]
[1725165812103,0.96914063,58688.0,58687.0,0.0008998]
[1725165821800,1.30992563,58688.0,58687.0,0.0008998]
[1725165822133,1.36257773,58688.0,58687.0,0.0008998]
[1725165824641,1.36339573,58688.0,58687.0,0.0008998]
[1725165834452,1.36339573,58688.0,58687.0,0.1477998]
[1725165837861,1.36339573,58688.0,58687.0,0.0834998]
[1725165838796,1.36339573,58688.0,58687.0,0.0008998]
[1725165841901,0.9284321,58688.0,58687.0,0.0008998]
[1725165842139,1.02261073,58688.0,58687.0,0.0784998]
[1725165842345,1.02261073,58688.0,58687.0,0.1427998]
[1725165842548,0.5876471,58688.0,58687.0,0.1427998]
[1725165843906,0.69582573,58688.0,58687.0,0.1437998]
[1725165844476,0.68982573,58688.0,58687.0,0.1437998]
[1725165844530,0.68182573,58688.0,58687.0,0.1427998]
[1725165844750,0.69582573,58688.0,58687.0,0.1437998]
[1725165845203,0.63617363,58688.0,58687.0,0.1437998]
[1725165845411,0.65017363,58688.0,58687.0,0.1447998]
[1725165845877,0.65717363,58688.0,58687.0,0.1457998]
[1725165848488,0.65717363,58688.0,58687.0,0.1466996]
[1725165852205,0.70981935,58688.0,58687.0,0.1466996]
[1725165852418,0.36903435,58688.0,58687.0,0.1466996]
[1725165856286,0.34603435,58688.0,58687.0,0.1466996]
[1725165860234,0.68681935,58688.0,58687.0,0.1466996]
[1725165862453,0.63417363,58688.0,58687.0,0.1466996]
[1725165863277,0.68681816,58688.0,58687.0,0.1466996]
[1725165863682,0.63417363,58688.0,58687.0,0.1466996]
[1725165865573,0.68681805,58688.0,58687.0,0.1466996]
[1725165866595,0.67281805,58688.0,58687.0,0.1456996]
[1725165866824,0.62017363,58688.0,58687.0,0.1456996]
[1725165867067,0.63417363,58688.0,58687.0,0.1466996]
[1725165868458,0.63417363,58688.0,58687.0,0.1456996]
[1725165868459,0.62017363,58688.0,58687.0,0.1456996]
[1725165868897,0.63317363,58688.0,58687.0,0.1466996]
[1725165872518,0.68581931,58688.0,58687.0,0.1466996]
[1725165873581,0.63317363,58688.0,58687.0,0.1466996]
[1725165873803,1.02660451,58688.0,58687.0,0.0823996]
[1725165874497,1.02660451,58688.0,58687.0,0.0803996]
[1725165874498,1.01260451,58688.0,58687.0,0.0803996]
[1725165874698,1.00660451,58688.0,58687.0,0.0803996]
[1725165874920,1.00660451,58688.0,58687.0,0.0793996]
[1725165875155,1.01860451,58688.0,58687.0,0.0803996]
[1725165875394,1.02460451,58688.0,58687.0,0.0813996]
[1725165875580,1.01260451,58688.0,58687.0,0.0803996]
[1725165875925,1.02460451,58688.0,58687.0,0.0813996]
[1725165886413,1.36538951,58688.0,58687.0,0.0028998]
[1725165886645,1.44898951,58688.0,58687.0,0.0028998]
[1725165890686,1.46701735,58688.0,58687.0,0.0028998]
[1725165900388,1.40641735,58688.0,58687.0,0.0028998]
[1725165901402,1.38838951,58688.0,58687.0,0.0028998]
[1725165902035,1.21717951,58688.0,58687.0,0.0028998]
[1725165902242,1.16453363,58688.0,58687.0,0.0028998]
[1725165902437,1.33492563,58688.0,58687.0,0.0028998]
[1725165908297,1.74201063,58688.0,58687.0,0.0028998]
[1725165908502,1.89466643,58688.0,58687.0,0.0028998]
[1725165908734,1.90726643,58688.0,58687.0,0.0028998]
[1725165908976,1.90926643,58688.0,58687.0,0.0028998]
[1725165909480,1.88426643,58688.0,58687.0,0.0008998]
[1725165909678,1.89426643,58688.0,58687.0,0.0018998]
[1725165910080,1.88248443,58688.0,58687.0,0.0018998]
[1725165910896,1.89448443,58688.0,58687.0,0.0028998]
[1725165911100,1.87248443,58688.0,58687.0,0.0008998]
[1725165911299,1.88648443,58688.0,58687.0,0.0008998]
[1725165911506,1.89848443,58688.0,58687.0,0.0018998]
[1725165915620,1.89648443,58688.0,58687.0,0.0018998]
[1725165916628,1.9232015,58688.0,58687.0,0.0018998]
[1725165919236,1.9252015,58688.0,58687.0,0.0018998]
[1725165920041,1.89848443,58688.0,58687.0,0.0018998]
[1725165921637,1.90848443,58688.0,58687.0,0.0018998]
[1725165922534,1.95537512,58688.0,58687.0,0.0018998]
[1725165922932,1.59999,58682.0,58681.0,0.0008998]
[1725165923117,1.86982443,58682.0,58681.0,0.0008998]
[1725165924334,1.88182443,58682.0,58681.0,0.0008998]
[1725165924978,1.88782443,58682.0,58681.0,0.0018998]
[1725165925423,1.88982443,58682.0,58681.0,0.0018998]
[1725165926153,1.88382443,58682.0,58681.0,0.0008998]
[1725165926571,1.91054444,58682.0,58681.0,0.0008998]
[1725165927025,1.89854444,58682.0,58681.0,0.0008998]
[1725165927524,1.92654444,58682.0,58681.0,0.0008998]
[1725165927843,1.93037149,58682.0,58681.0,0.0008998]
[1725165928236,2.28519149,58682.0,58681.0,0.0008998]
[1725165928430,2.28519149,58682.0,58679.0,0.00179097]
[1725165928431,1.266808,58680.0,58679.0,0.00179097]
[1725165928680,0.511342,58669.0,58668.0,0.1431]
[1725165928853,0.60552063,58669.0,58668.0,0.1431]
[1725165929085,1.31031063,58669.0,58668.0,0.1431]
[1725165929949,1.193174,58667.0,58664.0,0.0623]
[1725165930375,1.534081,58667.0,58663.0,0.1431]
[1725165930581,1.557081,58667.0,58663.0,0.1431]
[1725165931607,1.561081,58667.0,58663.0,0.1431]
[1725165931815,1.572081,58667.0,58663.0,0.1431]
[1725165932017,1.672081,58667.0,58663.0,0.1431]
[1725165932189,1.672081,58667.0,58663.0,0.0808]
[1725165932439,0.170468,58662.0,58661.0,0.0623]
[1725165932651,0.534404,58662.0,58661.0,0.0623]
[1725165932988,1.216276,58662.0,58661.0,0.0623]
[1725165933647,1.230276,58662.0,58661.0,0.0623]
[1725165934270,1.216276,58662.0,58661.0,0.0623]
[1725165934479,1.230276,58662.0,58661.0,0.0623]
[1725165934691,1.239276,58662.0,58661.0,0.0623]
[1725165935099,1.230276,58662.0,58661.0,0.0623]
[1725165935351,1.239276,58662.0,58661.0,0.0623]
[1725165941505,1.239276,58662.0,58659.0,0.0808]
[1725165941506,1.193314,58660.0,58659.0,0.0808]
[1725165941708,1.31049263,58660.0,58659.0,0.0808]
[1725165941932,1.41049263,58660.0,58659.0,0.0808]
[1725165943217,1.42449263,58660.0,58659.0,0.0808]
[1725165943764,1.44248519,58660.0,58659.0,0.0808]
[1725165944053,1.44948519,58660.0,58659.0,0.0808]
[1725165945111,1.193335,58659.0,58658.0,0.008998]
[1725165945307,1.316335,58659.0,58658.0,0.008998]
[1725165947320,1.329335,58659.0,58658.0,0.008998]
[1725165947516,1.335335,58659.0,58658.0,0.008998]
[1725165956532,0.994382,58659.0,58658.0,0.008998]
[1725165956765,0.74760763,58659.0,58658.0,0.150898]
[1725165957135,1.08856063,58659.0,58658.0,0.150898]
[1725165959615,0.74760763,58659.0,58658.0,0.150898]
[1725165960946,1.08856063,58659.0,58658.0,0.150898]
[1725165962836,0.74760763,58659.0,58658.0,0.150898]
[1725165964296,0.80031578,58659.0,58658.0,0.150898]
[1725165965624,1.14126878,58659.0,58658.0,0.150898]
[1725165966432,0.80031578,58659.0,58658.0,0.150898]
[1725165966845,1.14126878,58659.0,58658.0,0.150898]
[1725165969122,0.35388678,58659.0,58654.0,0.008998]
[1725165969321,1.28759463,58655.0,58654.0,0.008998]
[1725165969673,1.46330278,58655.0,58654.0,0.008998]
[1725165971148,1.47030278,58655.0,58654.0,0.008998]
[1725165971566,1.47630278,58655.0,58654.0,0.008998]
[1725165972928,1.48230278,58655.0,58654.0,0.008998]
[1725165978385,1.50071803,58655.0,58654.0,0.008998]
[1725165993044,1.90509403,58655.0,58654.0,0.008998]
[1725165993985,1.534419,58654.0,58653.0,0.00184758]
[1725165994203,1.71012715,58654.0,58653.0,0.00184758]
[1725165994803,2.98812715,58654.0,58653.0,0.00184758]
[1725165996338,2.99412715,58654.0,58653.0,0.00184758]
[1725165996620,3.00212715,58654.0,58653.0,0.00184758]
[1725165996950,3.01612715,58654.0,58653.0,0.00184758]
[1725165997974,3.01412715,58654.0,58653.0,0.00184758]
[1725165999472,1.1935,58651.0,58650.0,0.00961981]
[1725165999680,1.46338678,58651.0,58650.0,0.00961981]
[1725166000096,0.852587,58645.0,58644.0,0.0769]
[1725166000312,1.65183563,58645.0,58644.0,0.0769]
[1725166000727,1.75183563,58645.0,58644.0,0.0769]
[1725166000951,1.80457101,58645.0,58644.0,0.0769]
[1725166002080,1.36935738,58645.0,58644.0,0.0769]
[1725166002290,1.46353601,58645.0,58644.0,0.0769]
[1725166002504,1.41080063,58645.0,58644.0,0.1371]
[1725166002705,1.41480063,58645.0,58644.0,0.1371]
[1725166003404,1.46754221,58645.0,58644.0,0.1371]
[1725166003636,1.47854221,58645.0,58644.0,0.1371]
[1725166004523,0.70229358,58645.0,58644.0,0.1371]
[1725166004733,0.649552,58645.0,58644.0,0.1371]
[1725166004944,0.990587,58645.0,58644.0,0.1371]
[1725166006582,0.990587,58645.0,58644.0,0.1379998]
[1725166007427,1.08476563,58645.0,58644.0,0.1379998]
[1725166009575,1.13748047,58645.0,58644.0,0.1379998]
[1725166016862,0.79644547,58645.0,58644.0,0.1379998]
[1725166017087,0.138,58645.0,58644.0,0.1379998]
[1725166017301,0.170512,58647.0,58644.0,0.0008998]
[1725166017510,0.511535,58647.0,58646.0,0.1417]
[1725166017722,0.534535,58647.0,58646.0,0.1417]
[1725166019180,0.547535,58647.0,58646.0,0.1417]
[1725166019398,0.74171363,58647.0,58646.0,0.1417]
[1725166019604,0.72871363,58647.0,58646.0,0.1417]
[1725166020225,0.73471363,58647.0,58646.0,0.1417]
[1725166021329,0.74171363,58647.0,58646.0,0.1427]
[1725166021547,1.08273663,58647.0,58646.0,0.1427]
[1725166022953,0.988558,58647.0,58646.0,0.1427]
[1725166023220,1.08273663,58647.0,58646.0,0.1427]
[1725166027237,1.13545214,58647.0,58646.0,0.1427]
[1725166028876,1.04127351,58647.0,58646.0,0.1427]
[1725166029086,1.13545214,58647.0,58646.0,0.1427]
[1725166032010,1.47647514,58647.0,58646.0,0.001]
[1725166035262,1.88229814,58647.0,58646.0,0.001]
[1725166038205,1.89429814,58647.0,58646.0,0.001]
[1725166039022,1.536657,58645.0,58644.0,0.0008998]
[1725166039238,1.77717251,58645.0,58644.0,0.0008998]
[1725166039452,1.77517251,58645.0,58644.0,0.0008998]
[1725166039663,1.80190877,58645.0,58644.0,0.0008998]
[1725166040096,1.77517251,58645.0,58644.0,0.0008998]
[1725166041406,1.78417251,58645.0,58644.0,0.0008998]
[1725166041629,1.79717251,58645.0,58644.0,0.0008998]
[1725166043001,1.82390943,58645.0,58644.0,0.0008998]
[1725166043475,1.79917251,58645.0,58644.0,0.0008998]
[1725166043976,1.81762903,58645.0,58644.0,0.0008998]
[1725166046434,1.84436611,58645.0,58644.0,0.0008998]
[1725166048574,1.59931534,58645.0,58644.0,0.0008998]
[1725166049025,1.76983234,58645.0,58644.0,0.0008998]
[1725166050587,1.77983234,58645.0,58644.0,0.0008998]
[1725166051112,2.21504597,58645.0,58644.0,0.0008998]
[1725166051829,2.20604597,58645.0,58644.0,0.0008998]
[1725166052084,1.62912363,58634.0,58633.0,0.008998]
[1725166052294,1.75212363,58634.0,58633.0,0.008998]
[1725166054048,1.75912363,58634.0,58633.0,0.008998]
[1725166054421,1.75212363,58634.0,58633.0,0.008998]
[1725166054427,1.76612363,58634.0,58633.0,0.008998]
[1725166054561,1.78012363,58634.0,58633.0,0.008998]
[1725166055301,1.80686384,58634.0,58633.0,0.008998]
[1725166055736,1.80686384,58634.0,58622.0,0.008998]
[1725166055737,1.535076,58629.0,58626.0,0.0823]
[1725166055886,1.62925463,58629.0,58626.0,0.0823]
[1725166056084,1.72925463,58629.0,58626.0,0.0823]
[1725166056286,1.75225463,58629.0,58626.0,0.0823]
[1725166056953,1.77525463,58629.0,58626.0,0.0823]
[1725166057527,1.85055463,58629.0,58622.0,0.091298]
[1725166058138,1.691076,58629.0,58622.0,0.091298]
[1725166058381,1.44412663,58629.0,58628.0,0.091298]
[1725166058630,1.49682127,58629.0,58628.0,0.091298]
[1725166058904,1.49682127,58629.0,58622.0,0.156198]
[1725166058905,1.19407,58623.0,58622.0,0.156198]
[1725166059094,1.38824863,58623.0,58622.0,0.156198]
[1725166059546,1.41124863,58623.0,58622.0,0.156198]
[1725166060718,1.41724863,58623.0,58622.0,0.156198]
[1725166061021,1.41124863,58623.0,58622.0,0.156198]
[1725166061237,1.42224863,58623.0,58622.0,0.156198]
[1725166061615,1.42824863,58623.0,58622.0,0.156198]
[1725166061734,1.42824863,58623.0,58622.0,0.008998]
[1725166061735,1.33407,58623.0,58622.0,0.008998]
[1725166061967,1.42824863,58623.0,58622.0,0.156198]
[1725166062430,1.42824863,58623.0,58622.0,0.091298]
[1725166064045,1.41124863,58623.0,58622.0,0.091298]
[1725166064260,1.41824863,58623.0,58622.0,0.091298]
[1725166064524,1.43024863,58623.0,58622.0,0.091298]
[1725166064762,1.42324863,58623.0,58622.0,0.091298]
[1725166065119,1.41724863,58623.0,58622.0,0.091298]
[1725166065459,1.42824863,58623.0,58622.0,0.091298]
[1725166069471,1.42824863,58623.0,58622.0,0.157498]
[1725166073566,1.33407,58623.0,58622.0,0.157498]
[1725166073769,1.08708563,58623.0,58622.0,0.157498]
[1725166083471,1.13979332,58623.0,58622.0,0.157498]
[1725166086798,0.70445169,58623.0,58622.0,0.157498]
[1725166087024,0.651744,58623.0,58622.0,0.157498]
[1725166087402,0.992907,58623.0,58622.0,0.157498]
[1725166088423,1.04562621,58623.0,58622.0,0.157498]
[1725166089681,0.992907,58623.0,58622.0,0.157498]
[1725166090509,1.04562801,58623.0,58622.0,0.157498]
[1725166090727,0.70446501,58623.0,58622.0,0.157498]
[1725166091322,0.19272101,58623.0,58622.0,0.157498]
[1725166091465,0.04,58623.0,58622.0,0.157498]
[1725166091793,0.210581,58623.0,58622.0,0.157498]
[1725166091797,0.310581,58623.0,58622.0,0.157498]
[1725166091971,0.651744,58623.0,58622.0,0.157498]
[1725166092589,0.70446496,58623.0,58622.0,0.157498]
[1725166093386,0.651744,58623.0,58622.0,0.157498]
[1725166094999,0.70446366,58623.0,58622.0,0.157498]
[1725166095875,0.992907,58623.0,58622.0,0.157498]
[1725166096025,1.04563494,58623.0,58622.0,0.157498]
[1725166096829,0.992907,58623.0,58622.0,0.157498]
[1725166099494,0.651744,58623.0,58622.0,0.157498]
[1725166100488,0.310581,58623.0,58622.0,0.157498]
[1725166103301,0.311399,58623.0,58622.0,0.157498]
[1725166104422,0.652562,58623.0,58622.0,0.157498]
[1725166107615,0.117818,58623.0,58622.0,0.157498]
[1725166107865,0.017818,58623.0,58622.0,0.157498]
[1725166108099,0.117818,58623.0,58622.0,0.157498]
[1725166108196,0.017818,58623.0,58622.0,0.157498]
[1725166108404,0.117818,58623.0,58622.0,0.157498]
[1725166112128,0.629562,58623.0,58622.0,0.157498]
[1725166112375,0.652562,58623.0,58622.0,0.157498]
[1725166119301,0.117818,58623.0,58622.0,0.157498]
[1725166119502,0.017818,58623.0,58622.0,0.157498]
[1725166119759,0.117818,58623.0,58622.0,0.157498]
[1725166120211,0.017818,58623.0,58622.0,0.333082]
[1725166122904,0.017818,58623.0,58622.0,0.67425]
[1725166123963,0.017818,58623.0,58622.0,1.10959663]
[1725166124358,0.017818,58623.0,58622.0,1.50200521]
[1725166124718,0.017818,58623.0,58622.0,1.45076463]
[1725166125396,0.006818,58623.0,58622.0,1.45076463]
[1725166125611,0.006818,58623.0,58622.0,1.52755607]
[1725166126029,0.006818,58623.0,58622.0,1.45076463]
[1725166126475,0.000818,58623.0,58622.0,1.52749733]
[1725166126672,0.000818,58623.0,58622.0,1.52946532]
[1725166126878,0.001818,58623.0,58622.0,1.52946532]
[1725166127512,0.001818,58623.0,58622.0,1.45076463]
[1725166129684,0.001818,58623.0,58622.0,1.50385983]
[1725166131802,0.001818,58623.0,58622.0,1.50189184]
[1725166132562,0.001818,58623.0,58622.0,1.45076463]
[1725166139158,0.27857686,58642.0,58624.0,0.0631]
[1725166139364,0.27857686,58642.0,58634.0,0.0788]
[1725166139365,0.170536,58639.0,58634.0,0.0788]
[1725166139574,0.511593,58641.0,58635.0,0.170545]
[1725166140000,0.170531,58641.0,58635.0,0.34109]
[1725166140229,0.170529,58641.0,58636.0,0.170542]
[1725166140463,0.014,58642.0,58634.0,0.0788]
[1725166140669,0.170532,58640.0,58635.0,0.170546]
[1725166141547,0.170532,58640.0,58636.0,0.005]
[1725166141964,0.1,58639.0,58636.0,0.005]
[1725166142383,0.1126,58639.0,58627.0,0.0681]
[1725166142589,0.1126,58639.0,58624.0,0.341154]
[1725166142590,0.09417863,58632.0,58624.0,0.005]
[1725166142829,0.341122,58630.0,58624.0,0.005]
[1725166143048,0.170569,58628.0,58624.0,0.005]
[1725166144087,0.170569,58628.0,58623.0,0.17058]
[1725166144321,0.170573,58626.0,58624.0,0.002]
[1725166144975,0.170575,58625.0,58624.0,0.002]
[1725166145855,0.170575,58625.0,58622.0,0.008998]
[1725166146294,0.170575,58625.0,58623.0,0.001]
[1725166146521,0.170575,58625.0,58622.0,0.008998]
[1725166146955,0.171575,58625.0,58624.0,0.001]
[1725166147144,0.171575,58625.0,58622.0,0.008998]
[1725166147347,0.172575,58625.0,58622.0,0.009998]
[1725166147739,0.171575,58625.0,58622.0,0.008998]
[1725166148036,0.001,58625.0,58622.0,0.008998]
[1725166149033,0.001,58625.0,58622.0,0.009998]
[1725166149232,0.004,58625.0,58622.0,0.008998]
[1725166149752,0.170571,58627.0,58622.0,0.009998]
[1725166149930,0.170571,58627.0,58622.0,0.008998]
[1725166150184,0.004,58625.0,58622.0,0.009998]
[1725166151162,0.004,58625.0,58622.0,0.180582]
[1725166151422,0.170571,58627.0,58622.0,0.180582]
[1725166151868,0.176571,58627.0,58622.0,0.180582]
[1725166152358,0.170571,58627.0,58622.0,0.179582]
[1725166152569,0.002,58625.0,58622.0,0.179582]
[1725166152797,0.002,58625.0,58622.0,0.180582]
[1725166153219,0.170571,58627.0,58622.0,0.180582]
[1725166153665,0.175571,58627.0,58622.0,0.179582]
[1725166153668,0.175571,58627.0,58623.0,0.0648]
[1725166154628,0.170571,58627.0,58623.0,0.0648]
[1725166154964,0.002,58625.0,58623.0,0.0648]
[1725166155533,0.170571,58627.0,58623.0,0.0648]
[1725166155743,0.175571,58627.0,58623.0,0.0648]
[1725166156161,0.170571,58627.0,58623.0,0.0648]
[1725166156579,0.002,58625.0,58623.0,0.0668]
[1725166156919,0.002,58625.0,58623.0,0.0648]
[1725166157925,0.170571,58627.0,58624.0,0.082]
[1725166158145,0.175571,58627.0,58624.0,0.082]
[1725166159141,0.170571,58627.0,58624.0,0.082]
[1725166159343,0.170571,58627.0,58624.0,0.083]
[1725166159713,0.001,58625.0,58624.0,0.083]
[1725166160998,0.170571,58627.0,58624.0,0.083]
[1725166161204,0.174571,58627.0,58624.0,0.083]
[1725166161857,0.170571,58627.0,58624.0,0.083]
[1725166162060,0.001,58625.0,58624.0,0.082]
[1725166162268,0.001,58625.0,58624.0,0.084]
[1725166162670,0.170571,58627.0,58624.0,0.082]
[1725166162899,0.174571,58627.0,58624.0,0.083]
[1725166163395,0.174571,58627.0,58626.0,0.170572]
[1725166163396,0.004,58627.0,58626.0,0.170572]
[1725166163589,0.004,58627.0,58626.0,0.2387831]
[1725166163791,0.004,58627.0,58626.0,0.235372]
[1725166164214,0.170561,58631.0,58627.0,0.170568]
[1725166164853,0.170561,58631.0,58628.0,0.0629]
[1725166165657,0.341087,58636.0,58628.0,0.0629]
[1725166165658,0.341099,58634.0,58628.0,0.0629]
[1725166165895,0.170555,58632.0,58628.0,0.233466]
[1725166166309,0.026,58631.0,58628.0,0.233466]
[1725166166937,0.023,58631.0,58628.0,0.233466]
[1725166167171,0.023,58631.0,58629.0,0.170563]
[1725166167433,0.004,58632.0,58629.0,0.170563]
[1725166167641,0.023,58631.0,58629.0,0.170563]
[1725166167878,0.031,58631.0,58629.0,0.170563]
[1725166168245,0.023,58631.0,58629.0,0.170563]
[1725166168411,0.025,58631.0,58628.0,0.0629]
[1725166168584,0.002,58631.0,58628.0,0.0629]
[1725166168811,0.002,58631.0,58628.0,0.235465]
[1725166169025,0.002,58631.0,58628.0,0.233465]
[1725166169242,0.023,58632.0,58628.0,0.233465]
[1725166169497,0.023,58632.0,58629.0,0.002]
[1725166169682,0.023,58632.0,58628.0,0.233465]
[1725166169904,0.002,58631.0,58628.0,0.233465]
[1725166170191,0.002,58631.0,58628.0,0.235465]
[1725166170507,0.002,58631.0,58628.0,0.233465]
[1725166171002,0.023,58632.0,58628.0,0.233465]
[1725166171424,0.027,58632.0,58628.0,0.233465]
[1725166171893,0.023,58632.0,58628.0,0.233465]
[1725166172253,0.027,58632.0,58628.0,0.233465]
[1725166172474,0.027,58632.0,58629.0,0.171563]
[1725166172697,0.027,58632.0,58629.0,0.170563]
[1725166174002,0.027,58632.0,58629.0,0.171563]
[1725166174222,0.023,58632.0,58629.0,0.171563]
[1725166174455,0.027,58632.0,58629.0,0.171563]
[1725166175017,0.027,58632.0,58629.0,0.001]
[1725166176477,0.197556,58632.0,58629.0,0.001]
[1725166181099,0.170558,58631.0,58629.0,0.001]
[1725166182188,0.170558,58631.0,58627.0,0.170569]
[1725166182189,0.172558,58631.0,58627.0,0.170569]
[1725166182610,0.172558,58631.0,58629.0,0.002]
[1725166183261,0.172558,58631.0,58627.0,0.170569]
[1725166183699,0.172558,58631.0,58627.0,0.172569]
[1725166184123,0.170558,58631.0,58627.0,0.172569]
[1725166184338,0.172558,58631.0,58627.0,0.172569]
[1725166184953,0.172558,58631.0,58627.0,0.170569]
[1725166185318,0.172558,58631.0,58629.0,0.002]
[1725166185710,0.170561,58630.0,58626.0,0.0629]
[1725166185913,0.170561,58630.0,58627.0,0.002]
[1725166186150,0.170561,58630.0,58626.0,0.233472]
[1725166186586,0.170561,58630.0,58629.0,0.002]
[1725166186808,0.170561,58630.0,58626.0,0.233472]
[1725166188130,0.170561,58630.0,58627.0,0.0008998]
[1725166188779,0.171561,58630.0,58627.0,0.0028998]
[1725166189134,0.170564,58629.0,58627.0,0.0028998]
[1725166190366,0.170564,58629.0,58627.0,0.0008998]
[1725166190464,0.171564,58629.0,58627.0,0.0028998]
[1725166192037,0.0624,58628.0,58627.0,0.0028998]
[1725166192233,1.49164639,58628.0,58627.0,0.0028998]
[1725166192453,1.44475498,58628.0,58627.0,0.0028998]
[1725166193238,1.44475498,58628.0,58627.0,0.0008998]
[1725166193450,1.44475498,58628.0,58600.0,0.11140851]
[1725166193451,1.206418,58601.0,58600.0,0.11140851]
[1725166193621,1.206418,58601.0,58600.0,0.008998]
[1725166193622,1.647709,58601.0,58600.0,0.008998]
[1725166193995,1.670709,58601.0,58600.0,0.008998]
[1725166194418,1.69746335,58601.0,58600.0,0.008998]
[1725166194618,1.71006335,58601.0,58600.0,0.008998]
[1725166194776,1.72406335,58601.0,58600.0,0.008998]
[1725166195210,1.71006335,58601.0,58600.0,0.008998]
[1725166195414,1.81824198,58601.0,58600.0,0.008998]
[1725166195925,1.83224198,58601.0,58600.0,0.008998]
[1725166196151,1.81824198,58601.0,58600.0,0.008998]
[1725166196369,1.83224198,58601.0,58600.0,0.008998]
[1725166197339,1.84624198,58601.0,58600.0,0.008998]
[1725166197914,1.83224198,58601.0,58600.0,0.008998]
[1725166198313,1.84624198,58601.0,58600.0,0.008998]
[1725166199156,1.84824198,58601.0,58600.0,0.008998]
[1725166199356,1.60153717,58601.0,58600.0,0.008998]
[1725166199763,1.74542782,58601.0,58600.0,0.008998]
[1725166200435,1.75542782,58601.0,58600.0,0.008998]
[1725166200440,1.75542782,58601.0,58595.0,0.008998]
[1725166200441,1.535832,58600.0,58599.0,0.00116482]
[1725166200591,1.660832,58600.0,58599.0,0.00116482]
[1725166202251,1.672832,58600.0,58599.0,0.00116482]
[1725166202459,1.78101063,58600.0,58599.0,0.00116482]
[1725166202651,1.43971463,58600.0,58599.0,0.00116482]
[1725166202872,2.71571463,58600.0,58599.0,0.00116482]
[1725166203063,2.74247059,58600.0,58599.0,0.00116482]
[1725166204384,2.75146859,58600.0,58599.0,0.00116482]
[1725166208756,1.47546859,58600.0,58599.0,0.00116482]
[1725166209810,1.44871263,58600.0,58599.0,0.00116482]
[1725166211295,1.013238,58600.0,58599.0,0.00116482]
[1725166211535,1.10741663,58600.0,58599.0,0.00116482]
[1725166213731,1.44871263,58600.0,58599.0,0.00116482]
[1725166220686,1.354534,58600.0,58599.0,0.00116482]
[1725166220889,1.44871263,58600.0,58599.0,0.00116482]
[1725166221577,1.194781,58588.0,58587.0,0.008998]
[1725166221765,1.548747,58588.0,58587.0,0.008998]
[1725166221967,1.74292563,58588.0,58587.0,0.008998]
[1725166222179,1.76592563,58588.0,58587.0,0.008998]
[1725166222392,1.75332563,58588.0,58587.0,0.008998]
[1725166223019,1.78132563,58588.0,58587.0,0.008998]
[1725166223380,1.76732563,58588.0,58587.0,0.008998]
[1725166223590,1.78132563,58588.0,58587.0,0.008998]
[1725166223813,1.83277305,58588.0,58587.0,0.008998]
[1725166224908,1.78132563,58588.0,58587.0,0.008998]
[1725166225108,1.76732563,58588.0,58587.0,0.008998]
[1725166225847,1.76932563,58588.0,58587.0,0.008998]
[1725166226038,1.78132563,58588.0,58587.0,0.008998]
[1725166226632,3.05732563,58588.0,58587.0,0.008998]
[1725166227038,3.05932563,58588.0,58587.0,0.008998]
[1725166227235,3.05732563,58588.0,58587.0,0.008998]
[1725166228358,3.11017981,58588.0,58587.0,0.008998]
[1725166228676,3.1288099,58588.0,58587.0,0.008998]
[1725166231789,3.1972729,58588.0,58587.0,0.008998]
[1725166236045,3.1972729,58588.0,58587.0,0.069998]
[1725166236046,2.67026527,58588.0,58587.0,0.069998]
[1725166236256,2.71158972,58588.0,58587.0,0.069998]
[1725166236809,2.76445784,58588.0,58587.0,0.069998]
[1725166237642,2.73458972,58588.0,58587.0,0.069998]
[1725166238288,2.78746152,58588.0,58587.0,0.069998]
[1725166238692,1.51146152,58588.0,58587.0,0.069998]
[1725166239135,1.45858972,58588.0,58587.0,0.069998]
[1725166239776,1.51146265,58588.0,58587.0,0.069998]
[1725166240306,1.45858972,58588.0,58587.0,0.069998]
[1725166241374,1.11722372,58588.0,58587.0,0.069998]
[1725166242703,1.09859363,58588.0,58587.0,0.069998]
[1725166245482,1.15146513,58588.0,58587.0,0.069998]
[1725166249135,1.49283113,58588.0,58587.0,0.069998]
[1725166249581,1.49283113,58588.0,58587.0,0.008998]
[1725166249806,1.49283113,58588.0,58572.0,0.005]
[1725166249807,0.0748,58566.0,58555.0,0.07631863]
[1725166250015,0.09417863,58556.0,58552.0,0.0754]
[1725166250224,1.195495,58553.0,58552.0,0.0754]
[1725166250437,1.295495,58553.0,58552.0,0.0754]